[Event "*** Titled Tuesday Blitz"]
[Site "Chess.com"]
[Date "2021.03.30"]
[Round "1"]
[White "Mops_2004"]
[Black "Bhagya_2312"]
[Result "1-0"]
[WhiteElo "2513"]
[BlackElo "2154"]
[TimeControl "180+1"]
[EndTime "10:07:46 PDT"]
[Termination "Mops_2004 won on time"]

1. Nf3 {[%clk 0:03:00.9]} 1... d5 {[%clk 0:02:58]} 2. g3 {[%clk 0:02:58.8]} 2...
Nf6 {[%clk 0:02:56.2]} 3. Bg2 {[%clk 0:02:58]} 3... c6 {[%clk 0:02:56.3]} 4. O-O
{[%clk 0:02:55.7]} 4... Bf5 {[%clk 0:02:53]} 5. c4 {[%clk 0:02:49.8]} 5... e6
{[%clk 0:02:51.1]} 6. Qb3 {[%clk 0:02:48.7]} 6... Qb6 {[%clk 0:02:49.3]} 7. d3
{[%clk 0:02:48]} 7... Nbd7 {[%clk 0:02:46.6]} 8. cxd5 {[%clk 0:02:47.7]} 8...
exd5 {[%clk 0:02:39.9]} 9. Qc2 {[%clk 0:02:45.8]} 9... h6 {[%clk 0:02:32.4]} 10.
Nc3 {[%clk 0:02:44.6]} 10... Be7 {[%clk 0:02:30.1]} 11. e4 {[%clk 0:02:44.1]}
11... dxe4 {[%clk 0:02:19]} 12. dxe4 {[%clk 0:02:45]} 12... Bh7 {[%clk
0:02:19.1]} 13. Qe2 {[%clk 0:02:44.7]} 13... Nc5 {[%clk 0:01:57.6]} 14. Be3
{[%clk 0:02:22.7]} 14... Qa6 {[%clk 0:01:52.1]} 15. Qxa6 {[%clk 0:02:16.7]}
15... Nxa6 {[%clk 0:01:50.4]} 16. Ne5 {[%clk 0:02:10.9]} 16... Bc5 {[%clk
0:01:41.4]} 17. Bxc5 {[%clk 0:02:09.4]} 17... Nxc5 {[%clk 0:01:41.3]} 18. f3
{[%clk 0:02:09.6]} 18... Ke7 {[%clk 0:01:37.2]} 19. Rfd1 {[%clk 0:02:06.2]}
19... Rhd8 {[%clk 0:01:36.5]} 20. Bf1 {[%clk 0:02:02.3]} 20... Nfd7 {[%clk
0:01:30.3]} 21. Nc4 {[%clk 0:01:56.8]} 21... Nb6 {[%clk 0:01:28.3]} 22. Na5
{[%clk 0:01:56.7]} 22... Rab8 {[%clk 0:01:00.9]} 23. b3 {[%clk 0:01:17.6]} 23...
Ne6 {[%clk 0:00:50.9]} 24. Kf2 {[%clk 0:01:14.1]} 24... f5 {[%clk 0:00:47.1]}
25. e5 {[%clk 0:01:07]} 25... f4 {[%clk 0:00:46.2]} 26. Rxd8 {[%clk 0:00:47.8]}
26... Kxd8 {[%clk 0:00:41.7]} 27. Bh3 {[%clk 0:00:43.8]} 27... fxg3+ {[%clk
0:00:40.4]} 28. hxg3 {[%clk 0:00:43.6]} 28... Ke7 {[%clk 0:00:40.6]} 29. f4
{[%clk 0:00:39.3]} 29... Nc5 {[%clk 0:00:24.3]} 30. Rd1 {[%clk 0:00:35]} 30...
g5 {[%clk 0:00:21]} 31. Ke3 {[%clk 0:00:34.4]} 31... gxf4+ {[%clk 0:00:20.3]}
32. gxf4 {[%clk 0:00:35.3]} 32... Rg8 {[%clk 0:00:18.2]} 33. Kf3 {[%clk
0:00:33]} 33... Rd8 {[%clk 0:00:10.8]} 34. Rxd8 {[%clk 0:00:30.3]} 34... Kxd8
{[%clk 0:00:10.8]} 35. b4 {[%clk 0:00:20.4]} 35... Nd3 {[%clk 0:00:10.8]} 36. a3
{[%clk 0:00:20.7]} 36... Kc7 {[%clk 0:00:10.3]} 37. Ke3 {[%clk 0:00:20.8]} 37...
Nb2 {[%clk 0:00:09.2]} 38. Kd4 {[%clk 0:00:20.1]} 38... N2a4 {[%clk 0:00:08.3]}
39. Nxa4 {[%clk 0:00:19.7]} 39... Nxa4 {[%clk 0:00:08.6]} 40. Nc4 {[%clk
0:00:20.3]} 40... b6 {[%clk 0:00:04.9]} 41. e6 {[%clk 0:00:20.3]} 41... c5+
{[%clk 0:00:05.2]} 42. Ke5 {[%clk 0:00:20.5]} 42... cxb4 {[%clk 0:00:05]} 43.
axb4 {[%clk 0:00:20.5]} 43... Kd8 {[%clk 0:00:05.2]} 44. f5 {[%clk 0:00:20.4]}
44... Nc3 {[%clk 0:00:02.2]} 45. f6 {[%clk 0:00:20.2]} 45... Nb5 {[%clk
0:00:01.5]} 46. e7+ {[%clk 0:00:18.7]} 46... Ke8 {[%clk 0:00:01.8]} 47. Nd6+
{[%clk 0:00:17.7]} 1-0

[Event "*** Titled Tuesday Blitz"]
[Site "Chess.com"]
[Date "2021.03.30"]
[Round "1"]
[White "esrosenberg"]
[Black "chess94cu"]
[Result "0-1"]
[WhiteElo "2224"]
[BlackElo "2543"]
[TimeControl "180+1"]
[EndTime "10:07:47 PDT"]
[Termination "chess94cu won by checkmate"]

1. Nf3 {[%clk 0:03:00.9]} 1... Nf6 {[%clk 0:02:58.4]} 2. c4 {[%clk 0:03:00.8]}
2... e6 {[%clk 0:02:56.4]} 3. Nc3 {[%clk 0:03:01]} 3... d5 {[%clk 0:02:57]} 4.
d4 {[%clk 0:03:00.8]} 4... Nbd7 {[%clk 0:02:55.1]} 5. Bg5 {[%clk 0:03:00.8]}
5... c6 {[%clk 0:02:54.4]} 6. e3 {[%clk 0:03:00.5]} 6... Qa5 {[%clk 0:02:54.1]}
7. Nd2 {[%clk 0:02:55.3]} 7... Bb4 {[%clk 0:02:43.7]} 8. Rc1 {[%clk 0:02:52.9]}
8... Ne4 {[%clk 0:02:42]} 9. Ndxe4 {[%clk 0:02:44.1]} 9... dxe4 {[%clk
0:02:42.9]} 10. Bf4 {[%clk 0:02:39.4]} 10... e5 {[%clk 0:02:36.4]} 11. dxe5
{[%clk 0:02:17.4]} 11... Nxe5 {[%clk 0:02:37.3]} 12. Qd4 {[%clk 0:01:54.9]}
12... Ng6 {[%clk 0:02:33.1]} 13. Qxg7 {[%clk 0:01:14.2]} 13... Be6 {[%clk
0:02:21.1]} 14. Qf6 {[%clk 0:00:39.4]} 14... Be7 {[%clk 0:01:41.3]} 15. Qd4
{[%clk 0:00:36.4]} 15... f5 {[%clk 0:01:33.5]} 16. Be2 {[%clk 0:00:15]} 16...
Kf7 {[%clk 0:01:31.9]} 17. c5 {[%clk 0:00:11.1]} 17... Bxc5 {[%clk 0:01:20.2]}
18. Qa4 {[%clk 0:00:10.5]} 18... Qxa4 {[%clk 0:01:19.6]} 19. Nxa4 {[%clk
0:00:11.4]} 19... Bb4+ {[%clk 0:01:20.1]} 20. Nc3 {[%clk 0:00:08.9]} 20... Nxf4
{[%clk 0:01:20.2]} 21. exf4 {[%clk 0:00:09.2]} 21... Rad8 {[%clk 0:01:20.8]} 22.
h3 {[%clk 0:00:07.9]} 22... Kf6 {[%clk 0:01:16.4]} 23. a3 {[%clk 0:00:08]} 23...
Ba5 {[%clk 0:01:15.5]} 24. b4 {[%clk 0:00:07.9]} 24... Bc7 {[%clk 0:01:13.1]}
25. g4 {[%clk 0:00:08.4]} 25... Bxf4 {[%clk 0:01:11.7]} 26. Rd1 {[%clk
0:00:08.1]} 26... Be5 {[%clk 0:01:09]} 27. Rc1 {[%clk 0:00:06.1]} 27... Rd4
{[%clk 0:01:00.6]} 28. gxf5 {[%clk 0:00:05.5]} 28... Bxf5 {[%clk 0:01:00.8]} 29.
f3 {[%clk 0:00:04.2]} 29... exf3 {[%clk 0:00:59.4]} 30. Bxf3 {[%clk 0:00:04.4]}
30... Bf4 {[%clk 0:00:59.1]} 31. Rd1 {[%clk 0:00:02.7]} 31... Rxd1+ {[%clk
0:00:43.9]} 32. Nxd1 {[%clk 0:00:03.6]} 32... Rd8 {[%clk 0:00:42.9]} 33. Kf2
{[%clk 0:00:03.5]} 33... Rd2+ {[%clk 0:00:42.6]} 34. Be2 {[%clk 0:00:03.9]}
34... Ra2 {[%clk 0:00:37.1]} 35. Re1 {[%clk 0:00:03.7]} 35... Rxa3 {[%clk
0:00:36.3]} 36. Bf3 {[%clk 0:00:03.2]} 36... Bxh3 {[%clk 0:00:32.7]} 37. Re2
{[%clk 0:00:02.7]} 37... Bf5 {[%clk 0:00:32]} 38. Ne3 {[%clk 0:00:02.2]} 38...
Bxe3+ {[%clk 0:00:31.3]} 39. Rxe3 {[%clk 0:00:02.7]} 39... Rxe3 {[%clk 0:00:32]}
40. Kxe3 {[%clk 0:00:03.6]} 40... Ke5 {[%clk 0:00:32.5]} 41. b5 {[%clk
0:00:04.5]} 41... cxb5 {[%clk 0:00:32.4]} 42. Bxb7 {[%clk 0:00:05.1]} 42... b4
{[%clk 0:00:33.2]} 43. Ba6 {[%clk 0:00:04.8]} 43... h5 {[%clk 0:00:32.2]} 44.
Kd2 {[%clk 0:00:05.4]} 44... Kd4 {[%clk 0:00:31]} 45. Bf1 {[%clk 0:00:06.3]}
45... h4 {[%clk 0:00:31]} 46. Kc1 {[%clk 0:00:07.2]} 46... a5 {[%clk 0:00:30.9]}
47. Kb2 {[%clk 0:00:07.7]} 47... a4 {[%clk 0:00:31.2]} 48. Ka2 {[%clk
0:00:07.9]} 48... Be6+ {[%clk 0:00:30.8]} 49. Kb2 {[%clk 0:00:07.9]} 49... a3+
{[%clk 0:00:30.4]} 50. Ka1 {[%clk 0:00:08]} 50... Kc3 {[%clk 0:00:30.2]} 51. Be2
{[%clk 0:00:06.9]} 51... b3 {[%clk 0:00:30]} 52. Kb1 {[%clk 0:00:06.2]} 52...
Bf5+ {[%clk 0:00:28.9]} 53. Ka1 {[%clk 0:00:05.5]} 53... b2+ {[%clk 0:00:28.8]}
54. Ka2 {[%clk 0:00:06.2]} 54... b1=Q+ {[%clk 0:00:28.2]} 55. Kxa3 {[%clk
0:00:06.6]} 55... Qb3# {[%clk 0:00:27.3]} 0-1

[Event "*** Titled Tuesday Blitz"]
[Site "Chess.com"]
[Date "2021.03.30"]
[Round "1"]
[White "pavelalexandru07"]
[Black "MPGM"]
[Result "0-1"]
[WhiteElo "2295"]
[BlackElo "2587"]
[TimeControl "180+1"]
[EndTime "10:07:48 PDT"]
[Termination "MPGM won by resignation"]

1. e4 {[%clk 0:02:59.9]} 1... e5 {[%clk 0:02:56.6]} 2. Nf3 {[%clk 0:02:59]} 2...
Nc6 {[%clk 0:02:55.8]} 3. Bb5 {[%clk 0:02:56.3]} 3... Nf6 {[%clk 0:02:53.9]} 4.
O-O {[%clk 0:02:55.2]} 4... Nxe4 {[%clk 0:02:51.9]} 5. d4 {[%clk 0:02:50.9]}
5... Nd6 {[%clk 0:02:51.2]} 6. dxe5 {[%clk 0:02:48.9]} 6... Nxb5 {[%clk
0:02:51.1]} 7. a4 {[%clk 0:02:41.7]} 7... Nbd4 {[%clk 0:02:45.1]} 8. Nxd4 {[%clk
0:02:39.7]} 8... Nxd4 {[%clk 0:02:44.4]} 9. Qxd4 {[%clk 0:02:39.5]} 9... d5
{[%clk 0:02:25.8]} 10. exd6 {[%clk 0:02:36.2]} 10... Qxd6 {[%clk 0:02:25.1]} 11.
Qe4+ {[%clk 0:02:36.1]} 11... Qe6 {[%clk 0:02:12.5]} 12. Qd4 {[%clk 0:02:33.3]}
12... Qd6 {[%clk 0:02:10.1]} 13. Qe4+ {[%clk 0:02:33.1]} 13... Be7 {[%clk
0:02:05]} 14. Re1 {[%clk 0:02:31.3]} 14... Be6 {[%clk 0:02:00.5]} 15. Qxb7
{[%clk 0:02:29.8]} 15... O-O {[%clk 0:01:54.1]} 16. Nc3 {[%clk 0:02:23.8]} 16...
c6 {[%clk 0:01:24.1]} 17. Bf4 {[%clk 0:01:59.7]} 17... Qb4 {[%clk 0:01:13.4]}
18. Qxb4 {[%clk 0:01:17.1]} 18... Bxb4 {[%clk 0:01:14.3]} 19. Re3 {[%clk
0:01:17.5]} 19... Bf5 {[%clk 0:01:13.8]} 20. Rc1 {[%clk 0:01:06.3]} 20... Rfe8
{[%clk 0:01:12.7]} 21. Rce1 {[%clk 0:00:16.2]} 21... Rxe3 {[%clk 0:01:06.8]} 22.
Bxe3 {[%clk 0:00:13.1]} 22... Bxc2 {[%clk 0:01:05.5]} 23. Rc1 {[%clk 0:00:13.2]}
23... Bb3 {[%clk 0:00:56.8]} 24. Ne4 {[%clk 0:00:07.7]} 24... Rd8 {[%clk
0:00:55.7]} 25. h3 {[%clk 0:00:04.7]} 25... a5 {[%clk 0:00:51.1]} 26. Rxc6
{[%clk 0:00:03.5]} 26... Bxa4 {[%clk 0:00:50.8]} 27. Rc7 {[%clk 0:00:02.7]}
27... f5 {[%clk 0:00:43.8]} 28. Ng3 {[%clk 0:00:02.9]} 28... Bd6 {[%clk
0:00:38.9]} 29. Rc4 {[%clk 0:00:03.1]} 29... Bb3 {[%clk 0:00:30.3]} 30. Rh4
{[%clk 0:00:03.6]} 30... g6 {[%clk 0:00:26.6]} 31. Rd4 {[%clk 0:00:04.2]} 31...
Be7 {[%clk 0:00:26]} 32. Rxd8+ {[%clk 0:00:04.1]} 32... Bxd8 {[%clk 0:00:26.9]}
33. Bd2 {[%clk 0:00:04.5]} 33... a4 {[%clk 0:00:26.6]} 34. Bc3 {[%clk
0:00:04.9]} 34... Bc4 {[%clk 0:00:23.6]} 35. Nf1 {[%clk 0:00:04.7]} 35... Kf7
{[%clk 0:00:21.4]} 36. Nd2 {[%clk 0:00:05.1]} 36... Bd5 {[%clk 0:00:21.3]} 37.
f3 {[%clk 0:00:05.2]} 37... Bb6+ {[%clk 0:00:21.1]} 38. Kf1 {[%clk 0:00:05.4]}
38... Ke6 {[%clk 0:00:21.7]} 39. Ke2 {[%clk 0:00:05.7]} 39... Bb7 {[%clk
0:00:19.9]} 40. Kd3 {[%clk 0:00:04.3]} 40... Ba6+ {[%clk 0:00:20.5]} 41. Kc2
{[%clk 0:00:04.4]} 41... Kd5 {[%clk 0:00:20.6]} 42. Bf6 {[%clk 0:00:03.2]} 42...
Be3 {[%clk 0:00:19.7]} 43. Bc3 {[%clk 0:00:02.8]} 43... h5 {[%clk 0:00:18.2]}
44. g4 {[%clk 0:00:02.5]} 44... fxg4 {[%clk 0:00:16]} 45. fxg4 {[%clk
0:00:02.3]} 45... hxg4 {[%clk 0:00:16.5]} 46. hxg4 {[%clk 0:00:02.4]} 46... Bc8
{[%clk 0:00:17.3]} 47. g5 {[%clk 0:00:02.1]} 47... Bxg5 {[%clk 0:00:17.2]} 48.
Nf3 {[%clk 0:00:02.5]} 48... Bf5+ {[%clk 0:00:17]} 49. Kd1 {[%clk 0:00:03]}
49... Bg4 {[%clk 0:00:16.3]} 50. Ke2 {[%clk 0:00:03.5]} 50... Ke4 {[%clk
0:00:16.4]} 0-1

[Event "*** Titled Tuesday Blitz"]
[Site "Chess.com"]
[Date "2021.03.30"]
[Round "1"]
[White "parintele_chess"]
[Black "SoldierOfGod1"]
[Result "1-0"]
[WhiteElo "2224"]
[BlackElo "2510"]
[TimeControl "180+1"]
[EndTime "10:07:53 PDT"]
[Termination "parintele_chess won by checkmate"]

1. Nf3 {[%clk 0:02:56.7]} 1... Nf6 {[%clk 0:02:59.7]} 2. d4 {[%clk 0:02:34.6]}
2... e6 {[%clk 0:02:59.7]} 3. b3 {[%clk 0:02:32.8]} 3... c5 {[%clk 0:02:58.5]}
4. Bb2 {[%clk 0:02:31.8]} 4... Nc6 {[%clk 0:02:58.1]} 5. e3 {[%clk 0:02:26]}
5... d5 {[%clk 0:02:56.8]} 6. Nbd2 {[%clk 0:02:23.7]} 6... Bd6 {[%clk
0:02:55.4]} 7. Be2 {[%clk 0:02:19.9]} 7... O-O {[%clk 0:02:55]} 8. h3 {[%clk
0:02:19.8]} 8... b6 {[%clk 0:02:54.2]} 9. O-O {[%clk 0:02:17.2]} 9... Bb7 {[%clk
0:02:54.2]} 10. a3 {[%clk 0:02:15.9]} 10... Qe7 {[%clk 0:02:53]} 11. c4 {[%clk
0:02:12.9]} 11... Rac8 {[%clk 0:02:50]} 12. Rc1 {[%clk 0:02:06.4]} 12... Rfd8
{[%clk 0:02:49.6]} 13. cxd5 {[%clk 0:01:59.7]} 13... exd5 {[%clk 0:02:48.7]} 14.
dxc5 {[%clk 0:01:56.1]} 14... bxc5 {[%clk 0:02:49.6]} 15. Qc2 {[%clk 0:01:53.2]}
15... Ne5 {[%clk 0:02:39.1]} 16. Nxe5 {[%clk 0:01:50.4]} 16... Bxe5 {[%clk
0:02:40]} 17. Nf3 {[%clk 0:01:50.9]} 17... Bd6 {[%clk 0:02:36.1]} 18. Qf5 {[%clk
0:01:47.6]} 18... Qe6 {[%clk 0:02:29.2]} 19. Qg5 {[%clk 0:01:36.9]} 19... h6
{[%clk 0:02:27.1]} 20. Qh4 {[%clk 0:01:36.2]} 20... Ne4 {[%clk 0:02:23.1]} 21.
Rfd1 {[%clk 0:01:22.7]} 21... Be7 {[%clk 0:02:11.8]} 22. Qg4 {[%clk 0:01:17]}
22... Qxg4 {[%clk 0:02:10.3]} 23. hxg4 {[%clk 0:01:17.9]} 23... g5 {[%clk
0:02:02.7]} 24. Bd3 {[%clk 0:01:11.4]} 24... Nf6 {[%clk 0:01:51.2]} 25. Bf5
{[%clk 0:01:09.5]} 25... Rc6 {[%clk 0:01:48.3]} 26. Ne5 {[%clk 0:00:42.9]} 26...
Rb6 {[%clk 0:01:35.4]} 27. Rd3 {[%clk 0:00:42.3]} 27... Ba6 {[%clk 0:01:32.8]}
28. Rdc3 {[%clk 0:00:39.7]} 28... d4 {[%clk 0:01:32.9]} 29. exd4 {[%clk
0:00:35.4]} 29... cxd4 {[%clk 0:01:33.3]} 30. Rc7 {[%clk 0:00:35.3]} 30... Bd6
{[%clk 0:01:16.9]} 31. Nxf7 {[%clk 0:00:23.6]} 31... Bxc7 {[%clk 0:01:13.9]} 32.
Rxc7 {[%clk 0:00:24.5]} 32... Nd5 {[%clk 0:00:17.9]} 33. Nxh6+ {[%clk
0:00:23.2]} 33... Kf8 {[%clk 0:00:17.4]} 34. Rf7+ {[%clk 0:00:18.4]} 34... Ke8
{[%clk 0:00:17.8]} 35. Rh7 {[%clk 0:00:14]} 35... Rdd6 {[%clk 0:00:09.1]} 36.
Ng8 {[%clk 0:00:08.8]} 36... Rxb3 {[%clk 0:00:06.5]} 37. Bxd4 {[%clk 0:00:08.8]}
37... Nf4 {[%clk 0:00:03.1]} 38. Re7+ {[%clk 0:00:06.4]} 38... Kd8 {[%clk
0:00:03.5]} 39. Bf6 {[%clk 0:00:06.5]} 39... Rd1+ {[%clk 0:00:03.5]} 40. Kh2
{[%clk 0:00:06]} 40... Nd5 {[%clk 0:00:02.6]} 41. Rd7+ {[%clk 0:00:05.4]} 41...
Ke8 {[%clk 0:00:03.3]} 42. Be6 {[%clk 0:00:03.5]} 42... Nxf6 {[%clk 0:00:03.2]}
43. Nxf6+ {[%clk 0:00:04.4]} 43... Kf8 {[%clk 0:00:03.4]} 44. Rf7# {[%clk
0:00:05]} 1-0

[Event "*** Titled Tuesday Blitz"]
[Site "Chess.com"]
[Date "2021.03.30"]
[Round "1"]
[White "Leo_C"]
[Black "DenisQ"]
[Result "1/2-1/2"]
[WhiteElo "2351"]
[BlackElo "2634"]
[TimeControl "180+1"]
[EndTime "10:07:55 PDT"]
[Termination "Game drawn by agreement"]

1. d4 {[%clk 0:03:00.3]} 1... d5 {[%clk 0:02:57.8]} 2. c4 {[%clk 0:03:00.3]}
2... c6 {[%clk 0:02:57.6]} 3. Nc3 {[%clk 0:02:59.8]} 3... Nf6 {[%clk 0:02:57.6]}
4. Nf3 {[%clk 0:03:00]} 4... e6 {[%clk 0:02:56.3]} 5. e3 {[%clk 0:02:59.2]} 5...
Nbd7 {[%clk 0:02:55.1]} 6. Qc2 {[%clk 0:02:59.1]} 6... Bd6 {[%clk 0:02:54.1]} 7.
g4 {[%clk 0:02:59.1]} 7... Nxg4 {[%clk 0:02:49.8]} 8. Rg1 {[%clk 0:02:57.9]}
8... Nxh2 {[%clk 0:02:49.5]} 9. Nxh2 {[%clk 0:02:57.7]} 9... Bxh2 {[%clk
0:02:49.9]} 10. Rxg7 {[%clk 0:02:57.9]} 10... Nf8 {[%clk 0:02:46.2]} 11. Rg2
{[%clk 0:02:56.2]} 11... Bd6 {[%clk 0:02:39.5]} 12. Bd2 {[%clk 0:02:54]} 12...
dxc4 {[%clk 0:02:34.6]} 13. Bxc4 {[%clk 0:02:52.5]} 13... b5 {[%clk 0:02:34.6]}
14. Bd3 {[%clk 0:02:51.8]} 14... Bb7 {[%clk 0:02:34.7]} 15. Be4 {[%clk
0:02:40.4]} 15... Qb6 {[%clk 0:02:31.8]} 16. O-O-O {[%clk 0:02:38]} 16... O-O-O
{[%clk 0:02:29.3]} 17. Kb1 {[%clk 0:02:36.4]} 17... Ng6 {[%clk 0:02:22.7]} 18.
Rc1 {[%clk 0:02:18.5]} 18... Kb8 {[%clk 0:02:21.5]} 19. f4 {[%clk 0:02:04.3]}
19... f5 {[%clk 0:02:19.4]} 20. Bd3 {[%clk 0:01:59.4]} 20... c5 {[%clk
0:02:18.3]} 21. dxc5 {[%clk 0:01:50.6]} 21... Bxc5 {[%clk 0:02:17.6]} 22. Rh2
{[%clk 0:01:48.7]} 22... Bxe3 {[%clk 0:02:10.3]} 23. Bxe3 {[%clk 0:01:46.9]}
23... Qxe3 {[%clk 0:02:09.5]} 24. Bxb5 {[%clk 0:01:45]} 24... Nxf4 {[%clk
0:02:05.4]} 25. Qa4 {[%clk 0:01:35.7]} 25... Nd3 {[%clk 0:01:57.5]} 26. Bxd3
{[%clk 0:01:26.6]} 26... Qxd3+ {[%clk 0:01:55]} 27. Ka1 {[%clk 0:01:25.9]} 27...
e5 {[%clk 0:01:47.5]} 28. Qa5 {[%clk 0:01:13.1]} 28... Qe3 {[%clk 0:01:41.6]}
29. Rb1 {[%clk 0:00:53.2]} 29... Qd4 {[%clk 0:01:25.3]} 30. Re1 {[%clk
0:00:38.2]} 30... Rd7 {[%clk 0:01:08.7]} 31. a3 {[%clk 0:00:30.8]} 31... Re8
{[%clk 0:01:05.8]} 32. Rd1 {[%clk 0:00:20.8]} 32... Qxd1+ {[%clk 0:00:56.1]} 33.
Nxd1 {[%clk 0:00:20.2]} 33... Rxd1+ {[%clk 0:00:56.7]} 34. Ka2 {[%clk
0:00:20.6]} 34... Bd5+ {[%clk 0:00:47.1]} 35. b3 {[%clk 0:00:19.9]} 35... Rc8
{[%clk 0:00:43.7]} 36. Kb2 {[%clk 0:00:14.8]} 36... Ka8 {[%clk 0:00:14.6]} 37.
Rxh7 {[%clk 0:00:10.8]} 37... Bb7 {[%clk 0:00:13.7]} 38. Rxb7 {[%clk 0:00:08]}
38... Kxb7 {[%clk 0:00:12.9]} 39. Qb5+ {[%clk 0:00:07.9]} 39... Ka8 {[%clk
0:00:12.8]} 40. Qxe5 {[%clk 0:00:07.9]} 40... Rd2+ {[%clk 0:00:12.3]} 41. Kb1
{[%clk 0:00:07.6]} 41... Rd1+ {[%clk 0:00:12.4]} 42. Kb2 {[%clk 0:00:07.4]}
42... Rd2+ {[%clk 0:00:12.5]} 43. Kb1 {[%clk 0:00:07.7]} 43... Rg8 {[%clk
0:00:08.7]} 44. Kc1 {[%clk 0:00:04.3]} 44... Rdd8 {[%clk 0:00:03.7]} 45. Qxf5
{[%clk 0:00:04.5]} 45... Rc8+ {[%clk 0:00:03.6]} 46. Kd1 {[%clk 0:00:04.4]}
46... Rgd8+ {[%clk 0:00:02.4]} 1/2-1/2

[Event "*** Titled Tuesday Blitz"]
[Site "Chess.com"]
[Date "2021.03.30"]
[Round "1"]
[White "MalyDominator"]
[Black "mamonika"]
[Result "0-1"]
[WhiteElo "2479"]
[BlackElo "2049"]
[TimeControl "180+1"]
[EndTime "10:07:58 PDT"]
[Termination "mamonika won by resignation"]

1. e4 {[%clk 0:02:58.3]} 1... c5 {[%clk 0:02:47.9]} 2. Nf3 {[%clk 0:02:53.5]}
2... e6 {[%clk 0:02:43.1]} 3. d4 {[%clk 0:02:50.1]} 3... cxd4 {[%clk 0:02:44]}
4. Nxd4 {[%clk 0:02:50.7]} 4... Nf6 {[%clk 0:02:43.9]} 5. Nc3 {[%clk 0:02:50.3]}
5... d6 {[%clk 0:02:41.3]} 6. Be2 {[%clk 0:02:46.1]} 6... Nc6 {[%clk 0:02:40.7]}
7. Be3 {[%clk 0:02:44.7]} 7... Be7 {[%clk 0:02:29.6]} 8. O-O {[%clk 0:02:42.5]}
8... O-O {[%clk 0:02:28.9]} 9. Kh1 {[%clk 0:02:42.4]} 9... a6 {[%clk 0:02:22]}
10. a4 {[%clk 0:02:41.5]} 10... Qc7 {[%clk 0:02:20.5]} 11. f4 {[%clk 0:02:41.5]}
11... e5 {[%clk 0:02:12]} 12. Nf5 {[%clk 0:02:27.8]} 12... Bxf5 {[%clk
0:02:10.4]} 13. exf5 {[%clk 0:02:28.3]} 13... Rad8 {[%clk 0:01:52.1]} 14. Qe1
{[%clk 0:02:27.7]} 14... d5 {[%clk 0:01:41.8]} 15. fxe5 {[%clk 0:02:27.5]} 15...
Nxe5 {[%clk 0:01:41.8]} 16. Rd1 {[%clk 0:02:18.8]} 16... Bc5 {[%clk 0:01:24.6]}
17. Bf4 {[%clk 0:02:15.2]} 17... Rfe8 {[%clk 0:01:21]} 18. Qg3 {[%clk
0:02:11.5]} 18... d4 {[%clk 0:01:08.9]} 19. Nb1 {[%clk 0:01:41.7]} 19... Ne4
{[%clk 0:01:01.2]} 20. Qh4 {[%clk 0:01:21.7]} 20... Be7 {[%clk 0:00:49.9]} 21.
Qh3 {[%clk 0:01:18]} 21... Bf6 {[%clk 0:00:49.3]} 22. Bd3 {[%clk 0:01:14.5]}
22... Qc6 {[%clk 0:00:48.5]} 23. Na3 {[%clk 0:01:00.6]} 23... Nxd3 {[%clk
0:00:45.7]} 24. Qxd3 {[%clk 0:00:56.6]} 24... Nc5 {[%clk 0:00:40.9]} 25. Qc4
{[%clk 0:00:48.5]} 25... Nxa4 {[%clk 0:00:38.5]} 26. Qb3 {[%clk 0:00:43.4]}
26... b5 {[%clk 0:00:37.1]} 27. Rfe1 {[%clk 0:00:34]} 27... Rxe1+ {[%clk
0:00:35.7]} 28. Rxe1 {[%clk 0:00:34]} 28... Re8 {[%clk 0:00:36.6]} 29. Qg3
{[%clk 0:00:31]} 29... g6 {[%clk 0:00:28.8]} 30. fxg6 {[%clk 0:00:30.2]} 30...
hxg6 {[%clk 0:00:26.1]} 31. h3 {[%clk 0:00:30]} 31... Kg7 {[%clk 0:00:24.2]} 32.
Be5 {[%clk 0:00:27.1]} 32... Bxe5 {[%clk 0:00:22.6]} 33. Rxe5 {[%clk 0:00:27]}
33... Rxe5 {[%clk 0:00:22.7]} 34. Qxe5+ {[%clk 0:00:26.8]} 34... Qf6 {[%clk
0:00:23.6]} 35. Qe2 {[%clk 0:00:18]} 35... Nxb2 {[%clk 0:00:21.9]} 36. Kh2
{[%clk 0:00:17]} 36... Na4 {[%clk 0:00:21]} 37. Nb1 {[%clk 0:00:16.4]} 37... Nc3
{[%clk 0:00:20.7]} 38. Nxc3 {[%clk 0:00:15.9]} 38... dxc3 {[%clk 0:00:21.6]} 39.
Qd3 {[%clk 0:00:16.5]} 39... Qe5+ {[%clk 0:00:21.7]} 40. Kg1 {[%clk 0:00:17]}
40... Qe1+ {[%clk 0:00:21.8]} 41. Kh2 {[%clk 0:00:17.4]} 41... Qe5+ {[%clk
0:00:21.4]} 42. Kg1 {[%clk 0:00:17.7]} 42... a5 {[%clk 0:00:21.8]} 43. Qd8
{[%clk 0:00:12.4]} 43... a4 {[%clk 0:00:20.5]} 44. Qa8 {[%clk 0:00:12.2]} 44...
Qc5+ {[%clk 0:00:19.5]} 45. Kh2 {[%clk 0:00:12.2]} 45... a3 {[%clk 0:00:19.9]}
46. Qa5 {[%clk 0:00:11.5]} 46... Qe5+ {[%clk 0:00:18.4]} 47. Kg1 {[%clk
0:00:11.4]} 47... Qe1+ {[%clk 0:00:18.3]} 48. Kh2 {[%clk 0:00:11.9]} 48... Qe5+
{[%clk 0:00:18.5]} 49. Kg1 {[%clk 0:00:12.3]} 49... Qc5+ {[%clk 0:00:18.6]} 50.
Kh2 {[%clk 0:00:12.1]} 50... Qd6+ {[%clk 0:00:18.2]} 51. Kg1 {[%clk 0:00:12.6]}
51... b4 {[%clk 0:00:18.6]} 52. Qa4 {[%clk 0:00:12.4]} 52... Qd1+ {[%clk
0:00:18.2]} 53. Kh2 {[%clk 0:00:12.9]} 53... Qd4 {[%clk 0:00:18.2]} 54. Kh1
{[%clk 0:00:12.7]} 54... Qc4 {[%clk 0:00:18.3]} 55. Kh2 {[%clk 0:00:12.9]} 55...
a2 {[%clk 0:00:18.6]} 56. h4 {[%clk 0:00:12.1]} 56... Qf4+ {[%clk 0:00:15.3]}
57. Kg1 {[%clk 0:00:12.2]} 57... Qc1+ {[%clk 0:00:15.3]} 58. Kh2 {[%clk
0:00:12.6]} 58... a1=Q {[%clk 0:00:15.1]} 0-1